Cogmind - Beta 9.4 @@@ ROGUE MODE // 2020.01.27 @ 16:29:32 Player: Pimski Result: Destroyed by S-27 Virus with Autogun Performance ------------- Evolutions (3) 1500 Regions Visited (10) 2000 Robots Destroyed (143) 715 Value Destroyed (4018) 4018 Prototype IDs (39) 780 Alien Tech Used (0) 0 Bonus (800) 800 TOTAL SCORE: 9813 Bonus ------- High Alert Combat Kills 200 Aligned with FarCom 300 Met Data Miner 300 Cogmind --------- Core Integrity 0/700 Matter 300/300 Energy 48/100 System Corruption 14% Temperature Cool (0) Movement Core (50) Location -6/Proximity Caves Parts ------- > --- POWER (1) -------- (None) > --- PROPULSION (4) --- (None) > --- UTILITY (6) ------ Improved Armor Integrity Analyzer Hacking Suite Makeshift Hacking Suite Makeshift Hacking Suite > --- WEAPON (2) ------- (None) > --- INVENTORY (4) ---- Light Angular Momentum Engine System Mapper Deep Network Scanner Longsword +1 Peak State ------------ > --- POWER ------------ Light Angular Momentum Engine > --- PROPULSION ------- Cesium-ion Thruster Cesium-ion Thruster Cesium-ion Thruster Xenon Bombardment Thruster > --- UTILITY ---------- Medium Storage Unit Experimental Sensor Array Improved Signal Interpreter Advanced Terrain Scan Processor Hacking Suite Hacking Suite > --- WEAPON ----------- Chainsword Longsword +1 > --- INVENTORY -------- Light Nuclear Core Cesium-ion Thruster Long-range Sensor Array Hacking Suite Hacking Suite Chronowheel Advanced EMP Blaster Plasma Cutter [Rating: 52] Favorites ----------- Power Cooled Ion Engine Engine Cooled Ion Engine Power Core Light Nuclear Core Propulsion Light Treads Treads Light Treads Leg Aluminum Leg Wheel Compact Wheel Flight Unit Cesium-ion Thruster Utility High-capacity Storage Unit Device Improved Heat Sink Storage High-capacity Storage Unit Processor Advanced Targeting Computer Hackware Hacking Suite Protection Improved Light Armor Plating Weapon Advanced Beam Rifle Energy Gun Advanced Beam Rifle Ballistic Gun Autogun Launcher Advanced EMP Blaster Slashing Weapon Longsword +1 Build | -11 -10 -10 -10 -9 -8 -7 -7 -7 -7 -6 ------- Run | Scr Mat Min Exi Min Mat Fac Low Low Dat Pro Slots Evolved 6 | . . . . . 4 2 . . . . Power . | . . . . . . . . . . . Propulsion 2 | . . . . . . 2 . . . . Utility 4 | . . . . . 4 . . . . . Weapon . | . . . . . . . . . . . Parts Attached 128 | 2 9 4 1 11 34 58 3 1 3 2 Power 11 | . 1 1 . 2 2 4 1 . . . Engine 9 | . 1 1 . 2 2 3 . . . . Core 2 | . . . . . . 1 1 . . . Reactor . | . . . . . . . . . . . Propulsion 33 | . 2 2 . 2 7 18 1 . . 1 Treads 21 | . 2 1 . . 6 12 . . . . Leg . | . . . . . . . . . . . Wheel 6 | . . 1 . 2 1 2 . . . . Hover . | . . . . . . . . . . . Flight 6 | . . . . . . 4 1 . . 1 Utility 47 | 1 2 . . . 16 22 1 1 3 1 Device 10 | . . . . . 3 6 . . 1 . Storage 9 | 1 2 . . . 2 3 . 1 . . Processor 6 | . . . . . 2 3 . . 1 . Hackware 6 | . . . . . . 3 1 . 1 1 Protection 16 | . . . . . 9 7 . . . . Artifact . | . . . . . . . . . . . Weapon 37 | 1 4 1 1 7 9 14 . . . . Energy Gun 12 | . 4 . 1 1 5 1 . . . . Energy Cannon . | . . . . . . . . . . . Ballistic Gun 18 | 1 . 1 . 3 4 9 . . . . Ballistic Cannon . | . . . . . . . . . . . Launcher 1 | . . . . . . 1 . . . . Special Weapon . | . . . . . . . . . . . Impact Weapon . | . . . . . . . . . . . Slashing Weapon 6 | . . . . 3 . 3 . . . . Piercing Weapon . | . . . . . . . . . . . Special Melee Weapon . | . . . . . . . . . . . Unidentified Prototypes 5 | . . . . . 3 2 . . . . Parts Lost 64 | . 3 3 . 4 15 26 2 1 7 3 Power 9 | . 1 1 . 1 1 3 1 . 1 . Propulsion 22 | . . 2 . 2 2 10 1 1 3 1 Utility 18 | . . . . . 8 5 . . 3 2 Weapon 15 | . 2 . . 1 4 8 . . . . Highest Loss Streak 6 | . 3 2 . 3 5 5 2 1 6 2 Average Slot Usage (%) 96 | . 97 98 100 98 96 97 98 87 72 47 Engine 8 | . 12 13 14 14 8 5 5 . . . Treads 17 | . 26 24 14 . 11 27 . . . . Wheel 5 | . . 2 14 25 6 . . . . . Flight 1 | . . . . . . . 30 26 19 1 Device 5 | . . . . . 13 2 7 7 5 7 Storage 23 | . 28 28 28 28 24 22 7 8 12 . Processor 6 | . . . . . 7 10 7 7 8 15 Hackware 1 | . . . . . . . 22 21 12 22 Protection 5 | . . . . . 5 8 . . . . Energy Gun 9 | . 22 25 14 5 14 4 . . . . Ballistic Gun 7 | . 4 2 14 17 3 9 . . . . Slashing Weapon 1 | . . . . 4 . . 13 7 5 . Naked Turns . | . . . . . . . . . . . Heaviest Build 127 | 14 73 73 71 73 111 127 24 18 18 2 Greatest Support 82 | 20 40 40 10 32 42 82 25 19 19 3 Greatest Overweight (x) 7 | . 1 7 7 7 6 7 . . . . Average Overweight (x) 1 | . . 2 7 2 4 . . . . . Largest Inventory Capacity 36 | 8 20 20 20 20 28 36 8 8 8 4 Average Capacity 23 | 6 13 20 20 20 25 27 8 8 7 4 Most Carried 28 | 6 20 20 20 20 28 28 8 8 8 4 Average Carried 22 | 6 11 19 19 19 23 27 7 7 7 4 Final Capacity 28 | 8 20 20 20 20 28 8 8 8 4 4 Final Carried 28 | 6 20 19 20 20 28 8 8 8 4 4 Class Distribution -------------------- 69% | Hauler-Mutant 20% | Scavenger-Mutant 4% | Hacker-Mutant Dominant Class ---------------- Mutant | -10/Materials Hauler-Mutant | -10/Mines Hauler-Mutant | -10/Exiles Hauler-Mutant | -9/Mines Hauler-Mutant | -8/Materials Scavenger-Mutant | -7/Factory Hacker-Sprinter | -7/Lower Caves Hacker-Mutant | -7/Lower Caves Scavenger-Mutant | -7/Data Miner Hacker-Mutant | -6/Proximity Caves Resources | -11 -10 -10 -10 -9 -8 -7 -7 -7 -7 -6 ----------- Run | Scr Mat Min Exi Min Mat Fac Low Low Dat Pro Matter Collected 2992 | 220 94 55 . 133 452 1835 42 59 . 102 Remotely . | . . . . . . . . . . . Salvage Created 6380 | 100 139 287 . 256 2330 3244 . . 24 . Parts 327 | 4 9 22 . 15 122 152 . . 3 . Haulers Intercepted 7 | . 1 . . . 3 3 . . . . Recyclers Shooed 10 | . 1 1 . 3 4 1 . . . . Parts Field Recycled . | . . . . . . . . . . . Retrieved Matter . | . . . . . . . . . . . Parts Self-Destructed 4 | . . . . . . . 4 . . . Prevented . | . . . . . . . . . . . Kills | -11 -10 -10 -10 -9 -8 -7 -7 -7 -7 -6 ------- Run | Scr Mat Min Exi Min Mat Fac Low Low Dat Pro Combat Hostiles Destroyed 93 | . 4 9 . 5 33 42 . . . . Guns 89 | . 3 7 . 5 33 41 . . . . AOE 2 | . . 2 . . . . . . . . Classes Destroyed 14 | 1 3 . . . 7 3 . . . . Worker 7 | . . . . . 3 4 . . . . Builder 2 | . . . . . 2 . . . . . Hauler 7 | . 1 . . . 3 3 . . . . Recycler 19 | 1 . 1 . 1 6 10 . . . . Mechanic 2 | . . . . . 1 1 . . . . Operator 5 | . . . . . 3 2 . . . . Watcher 7 | . . . . . 3 4 . . . . Swarmer 28 | . 3 7 . 3 7 8 . . . . Grunt 41 | . 1 2 . 2 20 16 . . . . Brawler 4 | . . . . . . 4 . . . . Duelist 2 | . . . . . 1 1 . . . . Sentry 11 | . . . . . 5 6 . . . . Hunter 3 | . . . . . . 3 . . . . Programmer 4 | . . . . . . 4 . . . . Best Kill Streak 6 | 1 3 3 . 3 6 6 . . 1 . Combat Bots Only 5 | . 3 3 . 3 5 4 . . . . Max Kills in Single Turn 2 | 1 1 2 . 2 1 2 . . 1 . Gunslinging 1 | . . . . 1 . 1 . . . . Exploded 1 | . . 1 . . . . . . . . Melee . | . . . . . . . . . . . Uniques/NPCs Destroyed 1 | . . . . . . . . . 1 . Data Miner (-7/Data Miner) Combat | -11 -10 -10 -10 -9 -8 -7 -7 -7 -7 -6 -------- Run | Scr Mat Min Exi Min Mat Fac Low Low Dat Pro Damage Taken 8757 | . 602 289 . 389 2236 4523 45 41 467 165 Core 1313 | . 83 46 . 93 387 393 . . 238 73 Absorbed by Shields . | . . . . . . . . . . . Core Remaining (%) 46 | 100 . . . 11 29 . . . . . Volleys Fired 520 | 5 27 28 . 25 193 242 . . . . Largest 2 | 2 2 2 . 2 2 2 . . . . Hottest 122 | 80 90 90 . 65 122 122 . . . . Shots Fired 1030 | 10 53 56 . 46 385 480 . . . . Gun 1030 | 10 53 56 . 46 385 480 . . . . Cannon . | . . . . . . . . . . . Launcher . | . . . . . . . . . . . Special . | . . . . . . . . . . . Kinetic 617 | . 16 . . 33 172 396 . . . . Thermal 313 | 5 11 . . . 213 84 . . . . Explosive . | . . . . . . . . . . . Electromagnetic 100 | 5 26 56 . 13 . . . . . . Robot Hit Streak 31 | 3 6 4 . 4 22 31 . . . . Robot Miss Streak 6 | 1 4 6 . 2 3 6 . . . . Penetration Max . | . . . . . . . . . . . Secondary Targets 10 | . 1 . . 3 3 3 . . . . Max Gunslinging Chain 1 | . 1 . . 1 1 1 . . . . Shots Hit Robots 779 | 7 26 24 . 26 293 402 . . 1 . Core Hits 276 | 2 6 11 . 10 107 139 . . 1 . Critical Hits 4 | . . . . . 2 2 . . . . Critical Kills 2 | . . . . . 1 1 . . . . Critical Parts Destroyed 2 | . . . . . 1 1 . . . . Melee Attacks 39 | . . . . 8 1 3 23 3 1 . Impact . | . . . . . . . . . . . Slashing 39 | . . . . 8 1 3 23 3 1 . Piercing . | . . . . . . . . . . . Sneak Attacks 3 | . . . . . . 2 . . 1 . Combat Hostiles . | . . . . . . . . . . . Follow-up Attacks . | . . . . . . . . . . . Damage Inflicted 11897 | 71 396 407 . 242 3982 6668 . . 131 . Guns 11226 | 71 340 303 . 242 3942 6328 . . . . Cannons . | . . . . . . . . . . . Explosions 158 | . 54 104 . . . . . . . . Melee 451 | . . . . . . 320 . . 131 . Ramming 62 | . 2 . . . 40 20 . . . . Kinetic 6114 | . 65 . . 124 1038 4887 . . . . Thermal 4599 | 43 107 104 . . 2904 1441 . . . . Explosive . | . . . . . . . . . . . Electromagnetic 671 | 28 222 303 . 118 . . . . . . Impact . | . . . . . . . . . . . Slashing 451 | . . . . . . 320 . . 131 . Piercing . | . . . . . . . . . . . Highest Corruption 14 | . . . . . . 14 14 14 14 14 Average Corruption 4 | . . . . . . 2 14 14 14 14 Corruption Purged . | . . . . . . . . . . . Effects 76 | . . . . . . 37 14 7 7 11 Message Errors 14 | . . . . . . 8 1 1 2 2 Matter Fused 2 | . . . . . . . 1 . . 1 Heat Flow Errors 10 | . . . . . . 7 1 . 1 1 Energy Discharges 7 | . . . . . . 2 . 2 . 3 Data Loss (minor) 9 | . . . . . . 6 1 1 . 1 Data Loss (major) 2 | . . . . . . 1 1 . . . Misdirections 16 | . . . . . . 3 5 2 3 3 Targeting Errors 14 | . . . . . . 8 4 1 1 . Weapon Failures 2 | . . . . . . 2 . . . . Overload Shots . | . . . . . . . . . . . Overflow Damage 157 | . . 28 . . . 129 . . . . Projectiles . | . . . . . . . . . . . Explosions 28 | . . 28 . . . . . . . . Melee 129 | . . . . . . 129 . . . . Knockbacks 1 | . . . . . 1 . . . . . Impact 1 | . . . . . 1 . . . . . Kinetic . | . . . . . . . . . . . Secondary . | . . . . . . . . . . . Self-Inflicted Damage . | . . . . . . . . . . . Shots . | . . . . . . . . . . . Rammed 7 | . 2 . . . 3 2 . . . . Targets Rammed 8 | . 2 . . . 3 3 . . . . Kicked . | . . . . . . . . . . . Crushed 1 | . . . . . . 1 . . . . Highest Temperature 291 | 92 108 270 . 102 230 291 266 . 184 125 Average Temperature 69 | 47 33 106 . 32 99 46 140 . 83 74 Received Heat Transfer 2115 | . 18 27 . 42 1035 894 27 . 60 12 Effects 2 | . . . . . . 1 1 . . . Energy Bleed 1 | . . . . . . . 1 . . . Interference 1 | . . . . . . 1 . . . . Siege Activations . | . . . . . . . . . . . Robots Corrupted 1 | . 1 . . . . . . . . . Combat Hostiles 1 | . 1 . . . . . . . . . Parts Fried 1 | . . 1 . . . . . . . . Impact Corruptions . | . . . . . . . . . . . Robots Melted 1 | . . . . . . 1 . . . . Combat Hostiles 1 | . . . . . . 1 . . . . Parts Melted 14 | . . . . . 9 5 . . . . Heat Transferred 8515 | 100 175 100 . . 5550 2590 . . . . Parts Sabotaged . | . . . . . . . . . . . Parts Stolen . | . . . . . . . . . . . Parts Stripped . | . . . . . . . . . . . Power Chain Reactions 2 | . 1 1 . . . . . . . . Missiles Intercepted . | . . . . . . . . . . . Alert | -11 -10 -10 -10 -9 -8 -7 -7 -7 -7 -6 ------- Run | Scr Mat Min Exi Min Mat Fac Low Low Dat Pro Peak Influence 595 | 5 87 168 . 85 340 595 . . . . Average Influence 184 | 3 52 102 . 26 126 303 . . . . Maximum Alert Level 2 | . . . . . 1 2 . . . . Low Security (%) 68 | 100 100 100 . 100 78 42 . . . . Level 1 13 | . . . . . 21 15 . . . . Level 2 17 | . . . . . . 41 . . . . Level 3 . | . . . . . . . . . . . Level 4 . | . . . . . . . . . . . Level 5 . | . . . . . . . . . . . High Security . | . . . . . . . . . . . Max Security . | . . . . . . . . . . . Squads Dispatched 18 | . 1 . . 1 3 13 . . . . Investigation 2 | . . . . . . 2 . . . . Extermination 4 | . . . . . . 4 . . . . Reinforcement 8 | . 1 . . . 3 4 . . . . Assault 1 | . . . . 1 . . . . . . Garrison 3 | . . . . . . 3 . . . . Intercept . | . . . . . . . . . . . Construction Impeded . | . . . . . . . . . . . Haulers Reinforced 2 | . . . . . . 2 . . . . Stealth | -11 -10 -10 -10 -9 -8 -7 -7 -7 -7 -6 --------- Run | Scr Mat Min Exi Min Mat Fac Low Low Dat Pro Distress Signals 7 | . . . . . 6 1 . . . . Communications Jammed . | . . . . . . . . . . . Distress Signals . | . . . . . . . . . . . Times Spotted 178 | . 5 11 . 6 65 68 11 2 4 6 Peak Tracking Total 6 | . 3 3 . 4 6 5 6 2 4 5 Tactical Retreats 23 | . . 3 . . 4 9 5 1 . 1 Traps | -11 -10 -10 -10 -9 -8 -7 -7 -7 -7 -6 ------- Run | Scr Mat Min Exi Min Mat Fac Low Low Dat Pro Traps Triggered 5 | . . . . . 1 4 . . . . Indirectly . | . . . . . . . . . . . Trap Hack Attempts . | . . . . . . . . . . . Triggered . | . . . . . . . . . . . Disarmed . | . . . . . . . . . . . Reprogrammed . | . . . . . . . . . . . Reused . | . . . . . . . . . . . Traps Extracted . | . . . . . . . . . . . Installed . | . . . . . . . . . . . Triggered . | . . . . . . . . . . . Machines | -11 -10 -10 -10 -9 -8 -7 -7 -7 -7 -6 ---------- Run | Scr Mat Min Exi Min Mat Fac Low Low Dat Pro Machines Disabled 2 | . . 1 . . 1 . . . . . Max in Single Turn 1 | . . 1 . . 1 . . . . . Garrison Access 1 | . . . . . 1 . . . . . Machines Sabotaged . | . . . . . . . . . . . Garrisons Compromised . | . . . . . . . . . . . Overloaded Fab Kills . | . . . . . . . . . . . Fab Network Shutdowns . | . . . . . . . . . . . Hacking | -11 -10 -10 -10 -9 -8 -7 -7 -7 -7 -6 --------- Run | Scr Mat Min Exi Min Mat Fac Low Low Dat Pro Machines Accessed 22 | . 1 . 2 . 4 10 . 1 4 . Terminals 9 | . 1 . . . 2 6 . . . . Fabricators . | . . . . . . . . . . . Repair Stations 3 | . . . . . . 3 . . . . Recycling Units . | . . . . . . . . . . . Scanalyzers 2 | . . . . . 1 1 . . . . Garrison Access 1 | . . . . . 1 . . . . . Total Hacks 61 | . 2 . 2 . 10 20 . 1 26 . Successful 42 | . 1 . 2 . 4 8 . 1 26 . Failed 19 | . 1 . . . 6 12 . . . . Catastrophic 2 | . . . . . . 2 . . . . Database Lockouts . | . . . . . . . . . . . Manual 16 | . 2 . 1 . 4 8 1 . . . Terminals 19 | . 2 . . . 4 13 . . . . Fabricators . | . . . . . . . . . . . Repair Stations 5 | . . . . . . 5 . . . . Recycling Units . | . . . . . . . . . . . Scanalyzers 6 | . . . . . 4 2 . . . . Garrison Access 2 | . . . . . 2 . . . . . Terminal Hacks 34 | . . . 2 . 2 3 . 1 26 . Record 12 | . . . 1 . . . . . 11 . Part Schematic 7 | . . . . . . . . . 7 . Robot Schematic 5 | . . . . . . . . . 5 . Prototype ID Bank 4 | . . . . . . 1 . . 3 . Open Door 1 | . . . . . . . . 1 . . Branch Access Points 1 | . . . . . 1 . . . . . Hauler Manifests 2 | . . . . . 1 1 . . . . Registered Prototypes 1 | . . . . . . 1 . . . . EX-Prototype ID Bank 1 | . . . 1 . . . . . . . Fabricator Hacks . | . . . . . . . . . . . Repair Station Hacks 2 | . . . . . . 2 . . . . Scan Component 1 | . . . . . . 1 . . . . Repair 1 | . . . . . . 1 . . . . Recycling Unit Hacks . | . . . . . . . . . . . Scanalyzer 3 | . . . . . 1 2 . . . . Insert Component 2 | . . . . . 1 1 . . . . Analyze 1 | . . . . . . 1 . . . . Garrison Access Hacks 1 | . . . . . 1 . . . . . Seal Access 1 | . . . . . 1 . . . . . Unauthorized Hacks 9 | . 2 . . . . 7 . . . . Terminals 2 | . 1 . . . . 1 . . . . Botnet 2 | . 1 . . . . 1 . . . . Fabricators . | . . . . . . . . . . . Repair Stations . | . . . . . . . . . . . Recycling Units . | . . . . . . . . . . . Scanalyzers . | . . . . . . . . . . . Garrison Access . | . . . . . . . . . . . Data Cores Recovered 1 | . . . . . . 1 . . . . Used . | . . . . . . . . . . . Hacking Detections 14 | . 1 . . . 3 10 . . . . Full Trace Events 2 | . . . . . . 2 . . . . Feedback Events . | . . . . . . . . . . . Feedback Blocked . | . . . . . . . . . . . Robot Schematics Acquired 5 | . . . . . . . . . 5 . Robots Built . | . . . . . . . . . . . Matter . | . . . . . . . . . . . Time . | . . . . . . . . . . . Total Robot Build Rating . | . . . . . . . . . . . Part Schematics Acquired 8 | . . . . . . 1 . . 7 . Parts Built . | . . . . . . . . . . . Matter . | . . . . . . . . . . . Time . | . . . . . . . . . . . Total Part Build Rating . | . . . . . . . . . . . Parts Repaired 1 | . . . . . . 1 . . . . Time 40 | . . . . . . 40 . . . . Parts Recycled . | . . . . . . . . . . . Recycled Matter . | . . . . . . . . . . . Retrieved Matter . | . . . . . . . . . . . Retrieved Components . | . . . . . . . . . . . Parts Scanalyzed 2 | . . . . . 1 1 . . . . Part Schematics Acquired 1 | . . . . . . 1 . . . . Parts Damaged . | . . . . . . . . . . . Bothacking | -11 -10 -10 -10 -9 -8 -7 -7 -7 -7 -6 ------------ Run | Scr Mat Min Exi Min Mat Fac Low Low Dat Pro Used RIF Installer . | . . . . . . . . . . . Robots Hacked . | . . . . . . . . . . . Non-combat . | . . . . . . . . . . . Combat . | . . . . . . . . . . . Robot Hacks Applied . | . . . . . . . . . . . Relay Couplers Released . | . . . . . . . . . . . Robots Rewired . | . . . . . . . . . . . Allies Hacked . | . . . . . . . . . . . Hacks Repelled . | . . . . . . . . . . . Allies | -11 -10 -10 -10 -9 -8 -7 -7 -7 -7 -6 -------- Run | Scr Mat Min Exi Min Mat Fac Low Low Dat Pro Total Allies 1 | . . . . 1 . . . . . . Largest Group 1 | . . . . 1 . . . . . . Highest-Rated Group 31 | . . . . 31 . . . . . . Highest-Rated Ally 31 | . . . . 31 . . . . . . Total Orders . | . . . . . . . . . . . Ally Attacks 8 | . . . . 8 . . . . . . Total Damage 109 | . . . . 109 . . . . . . Kills . | . . . . . . . . . . . Allies Corrupted . | . . . . . . . . . . . Allies Melted . | . . . . . . . . . . . Intel | -11 -10 -10 -10 -9 -8 -7 -7 -7 -7 -6 ------- Run | Scr Mat Min Exi Min Mat Fac Low Low Dat Pro Robot Analysis Total . | . . . . . . . . . . . Derelict Logs Recovered 4 | . . 1 . . . . 2 1 . . Drone Launches . | . . . . . . . . . . . Drone Recoveries . | . . . . . . . . . . . Exploration | -11 -10 -10 -10 -9 -8 -7 -7 -7 -7 -6 ------------- Run | Scr Mat Min Exi Min Mat Fac Low Low Dat Pro Turns Passed 7645 | 35 339 546 388 751 2174 2873 171 123 64 181 Spaces Moved 3993 | 15 133 254 257 362 703 1088 371 322 135 353 Core 363 | . . . . . . . . . 10 353 Treads 1574 | . 125 192 . 1 275 981 . . . . Legs 23 | 15 8 . . . . . . . . . Wheels 1117 | . . 62 257 361 428 9 . . . . Hover . | . . . . . . . . . . . Flight 916 | . . . . . . 98 371 322 125 . Fastest Speed 31 | 120 120 150 150 110 120 31 31 34 34 50 Average Speed 124 | 120 167 173 150 118 173 166 31 34 35 50 Slowest Speed 260 | 120 180 220 150 220 260 220 34 34 50 50 Overloaded Moves . | . . . . . . . . . . . Propulsion Burnouts . | . . . . . . . . . . . Robots Hopped 3 | . . . . . . . . 1 2 . Cave-ins Triggered . | . . . . . . . . . . . Time Travels 1 | . . . . . . . . . 1 . Exploration Rate (%) 48 | 3 15 63 60 47 54 36 64 54 77 57 Regions Visited 10 Branch Regions 7 Pre-discovered Areas 5 | . . 1 1 . . . 1 1 1 . Known Exits Taken 4 | . . . . . . 1 1 1 1 . Unknown Exits Taken 6 | 1 1 1 1 1 1 . . . . . Scrap Searched 11 | . . 3 . 1 . . . 3 . 4 Spaces Dug 35 | . . . . 8 1 1 22 3 . . Terrain Destroyed 53 | . 3 15 . 8 1 1 22 3 . . Melee 35 | . . . . 8 1 1 22 3 . . Projectile . | . . . . . . . . . . . AOE 18 | . 3 15 . . . . . . . . Actions | -11 -10 -10 -10 -9 -8 -7 -7 -7 -7 -6 --------- Run | Scr Mat Min Exi Min Mat Fac Low Low Dat Pro Total 5705 | 21 197 305 261 633 1316 1731 402 333 150 356 Wait 818 | . 2 15 . 221 305 264 2 3 5 1 Move 3978 | 14 132 253 256 361 702 1087 370 319 131 353 Hop 2 | . . . . . . . . 1 1 . Pick Up 113 | . 18 3 2 4 45 33 2 3 3 . Fast Attach 29 | 1 2 1 . 2 11 9 . . 1 2 Attach 68 | . 3 2 . 3 16 38 3 1 2 . Detach 7 | . . . . . 3 2 1 . 1 . Swap 31 | 1 4 1 1 6 7 11 . . . . Drop 91 | . 7 2 2 3 30 37 2 3 5 . Fire 520 | 5 27 28 . 25 193 242 . . . . Melee 38 | . . . . 8 1 3 22 3 1 . Ram . | . . . . . . . . . . . Kick . | . . . . . . . . . . . Crush 8 | . 2 . . . 3 3 . . . . Escape Stasis 2 | . . . . . . 2 . . . . Rewire . | . . . . . . . . . . . Trap . | . . . . . . . . . . . Miscellaneous . | . . . . . . . . . . . Route ------- -11/Scrapyard -10/Materials -10/Mines (discovered 3 exits: [*Mat x2] / *Exi) -10/Exiles -9/Mines -8/Materials (discovered 2 exits: *Fac x2) -7/Factory (discovered 4 exits: [*Fac x2] / *Sto / *Low) -7/Lower Caves -7/Lower Caves -7/Data Miner -6/Proximity Caves History --------- Turn | Location | Event 16 | -11/Scrapyard | Discovered new exit (range 3) 36 | -11/Scrapyard | Entered Materials 90 | -10/Materials | Discovered new exit (range 15) 184 | -10/Materials | Lost 3 parts (1p2w) 375 | -10/Materials | Entered Mines 390 | -10/Mines | Discovered new exit (range 3) 525 | -10/Mines | Build established: Hauler-Mutant 617 | -10/Mines | Learned location of Storage (-7) 748 | -10/Mines | Learned Materials terminal intel 775 | -10/Mines | Discovered new exit (range 10) 822 | -10/Mines | Core integrity fell below 50% 915 | -10/Mines | Deemed a non-threat by the Exiles lab entrance 915 | -10/Mines | Discovered new exit (range 5) 921 | -10/Mines | Entered Exiles 959 | -10/Exiles | Met 8R-AWN 983 | -10/Exiles | Met EX-HEX 1038 | -10/Exiles | Met EX-DEC 1065 | -10/Exiles | Learned location of Zion (-6) 1089 | -10/Exiles | Met EX-BIN 1110 | -10/Exiles | Aligned with FarCom system 1112 | -10/Exiles | Given EX-Vault access code 1146 | -10/Exiles | Opened EX-Vault 1155 | -10/Exiles | Found Chronowheel 1162 | -10/Exiles | Found Longsword +1 1197 | -10/Exiles | Warned to stay clear of 0b10 Research branches 1293 | -10/Exiles | Discovered new exit (range 14) 1309 | -10/Exiles | Stole two prototypes: Chronowheel, Longsword +1 1309 | -10/Exiles | Entered Mines 1609 | -9/Mines | Core integrity fell below 20% 1641 | -9/Mines | Lost 3 parts (1p1n1w) 1667 | -9/Mines | Met a Derelict testing a Signal Generator 2050 | -9/Mines | Discovered new exit (range 8) 2055 | -9/Mines | Found a damaged Exp. Sensor Array with a note attached 2058 | -9/Mines | Found Prototype Device 2060 | -9/Mines | Entered Materials 2060 | -8/Materials | Evolved 4 slots: Utility x4 2061 | -8/Materials | Loaded intel: 12 terminal locations 2281 | -8/Materials | Lost 4 parts (1n3u) 2432 | -8/Materials | Lost 5 parts (1p3u1w) 2978 | -8/Materials | Discovered new exit (range 16) 3346 | -8/Materials | Core integrity fell below 50% 3728 | -8/Materials | Discovered new exit (range 11) 4234 | -8/Materials | Entered Factory 4234 | -7/Factory | Evolved 2 slots: Propulsion x2 4236 | -7/Factory | FarCom data flow suspended 4371 | -7/Factory | Discovered new exit (range 9) 4520 | -7/Factory | Identified Exp. Sensor Array 4563 | -7/Factory | Repaired Exp. Sensor Array 4603 | -7/Factory | Identified exit to Storage 5243 | -7/Factory | Lost 4 parts (1p2n1w) 5417 | -7/Factory | Discovered new exit (range 3) 5576 | -7/Factory | Garrison activated, responded to threat 5789 | -7/Factory | Lost 3 parts (2n1u) 5900 | -7/Factory | Build established: Scavenger-Mutant 5948 | -7/Factory | Discovered new exit (range 14) 6563 | -7/Factory | Discovered new exit (range 8) 6988 | -7/Factory | System corruption reached 10% 7000 | -7/Factory | Core integrity fell below 50% 7050 | -7/Factory | Lost 5 parts (1n2u2w) 7105 | -7/Factory | Identified exit to Lower Caves 7107 | -7/Factory | Entered Lower Caves 7128 | -7/Lower Caves | Acquired the password to a Derelict Tinkerer's latest research 7129 | -7/Lower Caves | Found Prototype Special Weapon 7166 | -7/Lower Caves | Identified exit to Lower Caves 7167 | -7/Lower Caves | Learned location of Extension (-5) 7175 | -7/Lower Caves | Spotted B-75 Beast 7278 | -7/Lower Caves | Entered another Lower Caves area 7346 | -7/Lower Caves | Encountered a Warlord checkpoint 7398 | -7/Lower Caves | Discovered new exit (range 10) 7401 | -7/Lower Caves | Identified exit to Data Miner 7401 | -7/Lower Caves | Entered Data Miner 7401 | -7/Data Miner | Discovered new exit (range 6) 7403 | -7/Data Miner | Identified exit to Proximity Caves 7408 | -7/Data Miner | Met Data Miner 7414 | -7/Data Miner | Learned location of Section 7 (-3) 7414 | -7/Data Miner | Acquired the access code to Warlord's prototype stash 7424 | -7/Data Miner | Received God Mode back door access code from Data Miner 7442 | -7/Data Miner | Activated Chronowheel 7442 | -7/Data Miner | Spacetime reconverged on an earlier point 7443 | -7/Data Miner | Destroyed Data Miner 7445 | -7/Data Miner | Found Prototype Hackware 7446 | -7/Data Miner | Found Prototype Hackware 7457 | -7/Data Miner | Core integrity fell below 20% 7457 | -7/Data Miner | Data Conduit disabled 7465 | -7/Data Miner | Entered Proximity Caves 7490 | -6/Proximity Caves | Lost 6 parts (1p3n2u) 7537 | -6/Proximity Caves | Spotted B-75 Beast 7643 | -6/Proximity Caves | Attracted the attention of an 0b10 checkpoint 7646 | -6/Proximity Caves | Destroyed by S-27 Virus with Autogun Last Messages --------------- 07537_ Knocked back. 07537_ Nuclear Pulse Thruster destroyed. 07546_ System corrupted: Heat flow error (+159). 07569_ System corrupted: Energy discharge (-34). 07570_ Searching scrap... 07570_ Found 38 Matter. 07570_ Found Plasma Cutter. 07570_ Found Imp. Cooling System. 07571_ Acquired 32 matter. 07600_ System corrupted: Energy discharge (-25). 07606_ Searching scrap... 07606_ Found 40 Matter. 07606_ Found Wheel. 07606_ Found Mak. Terrain Scanner. 07621_ J8ODRUGDUFS2ID9HZKNHBPF 07641_ System corrupted: Energy discharge (-19). 07643_ Y-54 Guardian: "INTERCEPTING UNREGISTERED DERELICT." 07643_ S-27 Virus destroyed. 07645_ Lrn. Sensor Array destroyed. 07645_ Imp. Signal Interpreter destroyed. Map ----- +----------------------------------------------------+ | ???? ????#* ! ????????????????????????????? | | ???? ? ??## ####?????#####???????????????? | | ??? ##?? ?## ## #???### ###?????????????? | | ??? ????## # ## ##### # ##????????????? | | ?????????# # ## #????????????? | | ?????????# # #????????????? | | #????###?#### ###### ###????????????? | | ###### ##??## ##????## #??????????????? | | ## #?## # ##??????# ## #??????????????? | | ### ### #???????# #?##??????????????? | | ### ##?# #??????## #?????????????????? | | # #?# ###??# #?????# #?????????????????? | | #### ### ##???#! #????# #?????????????????? | | ???## ## ##??#%=#???? ?????????????????? | | ###?## #??# #???? ?????????????????? | | #### ##??# #???? #?????????????????? | | ### ###???# #??? ##?????????????????? | | ##?????# ### ??????????????????? | | #??????# ???????????????????? | | ##??????## #???????????????????? | | ##????????# #???????????????????? | | ##??????????# #???????????????????? | | ###????????????# Y #???????????????????? | | ##??????????####?# #???????????????????? | | ######?????## ## b= ?????????????????????? | | ##????# l@##?????????????????????? | | #????# *##??????????????????????? | | #????# ## s##???????????????????????? | | # #???????## #????????????????????????? | | ## ##????????## #????????????????????????? | | ?# ##?????????# ##????????????????????????? | | ?## ## #?????????# #?????????????????????????? | | ??##### #####?##### #?????????????????????????? | | ??????## ## ### #?????????????????????????? | | ???????# #?????????????????????????? | | ????# #????????????????????????? | | ????# ##????????????????????????? | | ????# ### ##?????????????????????????? | | ????##### ##?### ####??????????????????????????? | | ????????####????####?????????????????????????????? | | ?????????????????????????????????????????????????? | | ?????????????????????????????????????????????????? | | ?????????????????????????????????????????????????? | | ?????????????????????????????????????????????????? | | ?????????????????????????????????????????????????? | | ?????????????????????????????????????????????????? | | ?????????????????????????????????????????????????? | | ?????????????????????????????????????????????????? | | ?????????????????????????????????????????????????? | | ?????????????????????????????????????????????????? | +----------------------------------------------------+ Best States ------------- Heat Dissipation 59 Energy Generation 18 Energy Capacity 460 Matter Stores 300 Matter Capacity 300 Sight Range 16 Robot Scan Range 30 Terrain Scan Density 210 Armor Coverage 675 Evasion (%) 63 Targeting Accuracy 8 Armor Integrity Analysis 50 Recoil Reduction 4 Offensive Hacking 32 Defensive Hacking 10 Item Schematics ----------------- Xenon Bombardment Thruster | -7/Factory | Scanalyzed Combat Drone Bay | -7/Data Miner | Free Lgt. Regenerative Plating | -7/Data Miner | Free Exp. Flexi-carbon Leg | -7/Data Miner | Free Triangulator | -7/Data Miner | Free Exp. Targeting Computer | -7/Data Miner | Free Tactical Coordination Suite | -7/Data Miner | Free Kinetic Spear | -7/Data Miner | Free Robot Schematics ------------------ S-27 Virus | -7/Data Miner | Free G-50 Soldier | -7/Data Miner | Free X-72 Disruptor | -7/Data Miner | Free I-36 Angel | -7/Data Miner | Free I-47 Archangel | -7/Data Miner | Free Fabricated ------------ Nothing Alien Tech Used ----------------- None Achievements -------------- None Challenges ------------ None Game ------ Seed CoilStasisWeb Manual? 0 Play Time 01:14:56 Cumulative 647.1 hours Start 2020.01.27 @ 15:14:35 End 2020.01.27 @ 16:29:32 Sessions 1 Manual Loads 0 Difficulty Rogue Special Mode None Game No. 417 Rogue 417 Adventurer 0 Explorer 0 Win Type - Total 103 Types 69/6/8/10/5/1/4 Lore% 97 Gallery% 95 Achievement% 80 Wizard Run 0 Options --------- ASCII 0 Keyboard 0 Movement Numpad Keybinds 0 Fullscreen 2 Font 18/SmallcapsGlow Map View 76x50 Tactical HUD 1 Map Filters NONE Filters NONE Steam 1 RUN: 49b7d9e5-bbcd-4e46-835f-f105fb12ba8f